fUSD/lending_fUSD_20240418
["ID","MTS","AMOUNT","RATE_DAILY","PERIOD"]
[322892444,1713481842802,-500.0,0.00016849,2]
[322892445,1713481842812,-500.0,0.00016849,2]
[322892446,1713481842822,-500.0,0.00016849,2]
[322892447,1713481842832,-949.11,0.00016849,2]
[322892448,1713481842841,-1130.52,0.00016849,2]
[322892449,1713481842851,-500.0,0.00016849,2]
[322892450,1713481842861,-4235.79,0.00016849,2]
[322892451,1713481842871,-500.0,0.00016849,2]
[322892452,1713481842880,-9846.36,0.00016849,2]
[322892453,1713481842890,-1007.11,0.00016849,2]
[322892454,1713481842899,-500.0,0.00016849,2]
[322892455,1713481842909,-5396.96,0.00016849,2]
[322892456,1713481842919,-500.0,0.00016849,2]
[322892457,1713481842929,-991.38,0.00016849,2]
[322892458,1713481842938,-996.45,0.00016849,2]
[322892459,1713481842948,-4602.58,0.00016849,2]
[322892460,1713481842957,-500.0,0.00016849,2]
[322892461,1713481842967,-10079.01,0.00016849,2]
[322892462,1713481842976,-500.0,0.00016849,2]
[322892463,1713481842985,-500.0,0.00016849,2]
[322892464,1713481842995,-500.0,0.00016849,2]
[322892465,1713481843004,-557.27,0.00016849,2]
[322892466,1713481843014,-561.83,0.00016849,2]
[322892467,1713481843024,-13923.29,0.00016849,2]
[322892468,1713481843034,-1085.29,0.00016849,2]
[322892469,1713481843043,-500.0,0.00016849,2]
[322892470,1713481843053,-982.67,0.00016849,2]
[322892471,1713481843062,-692.08,0.00016849,2]
[322892472,1713481843071,-500.0,0.00016849,2]
[322892473,1713481843080,-7732.07,0.00016849,2]
[322892474,1713481843090,-500.0,0.00016849,2]
[322892475,1713481843099,-1021.67,0.00016849,2]
[322892476,1713481843108,-624.96,0.00016849,2]
[322892477,1713481843118,-500.0,0.00016849,2]
[322892478,1713481843128,-26790.30394051,0.0001685,2]
[322892479,1713481843138,-500.0,0.00016856,2]
[322892480,1713481843148,-26790.30394051,0.00016859,2]
[322892481,1713481843157,-500.0,0.00016865,2]
[322892482,1713481843167,-26790.30394051,0.00016868,2]
[322892483,1713481843177,-500.0,0.00016874,2]
[322892484,1713481843187,-26790.30394051,0.00016878,2]
[322892485,1713481843199,-1065.99,0.00016879,2]
[322892486,1713481843209,-1065.99,0.00016879,2]
[322892487,1713481843218,-993.02,0.00016879,2]
[322892488,1713481843228,-993.02,0.00016879,2]
[322892489,1713481843238,-44111.23064829,0.0001688,2]
[322892490,1713481844332,-500.0,0.00016849,2]
[322892491,1713481844342,-2342.65,0.00016879,2]
[322892492,1713481844351,-10954.80543065,0.0001688,2]
[322892493,1713481844379,-11827.7989975,0.0001688,2]
[322892494,1713481844419,-6511.08391,0.0001688,2]
[322892495,1713481844431,-3152.59999999,0.0001688,2]
[322892496,1713481844443,-34794.9073579,0.0001688,2]
[322892497,1713481845194,-438.06027206,0.00016849,2]
[322892498,1713481845204,-1348.29675438,0.00016879,2]
[322892499,1713481845240,-994.35324562,0.00016879,2]
[322892500,1713481845250,-76.79075438,0.0001688,2]
[322892501,1713481845264,-828.9242,0.0001688,2]
[322892502,1713481845301,-803.01466375,0.0001688,2]
[322892503,1713481845325,-5856.06640972,0.0001688,2]
[322892504,1713481845337,-460.87172889,0.0001688,2]
[322892505,1713481845365,-3825.06292026,0.0001688,2]
[322892506,1713481845377,-258.11,0.0001688,2]
[322892514,1713481846248,-500.0,0.00016849,2]
[322892515,1713481846258,-500.0,0.00016849,2]
[322892516,1713481846271,-257.83340614,0.0001688,2]
[322892517,1713481846283,-1103.73407752,0.0001688,2]
[322892518,1713481846294,-1910.0,0.0001688,2]
[322892519,1713481846330,-1919.90911548,0.0001688,2]
[322892520,1713481846342,-426.80122921,0.0001688,2]
[322892521,1713481846385,-1591.6600004,0.0001688,2]
[322892522,1713481846396,-659.549999,0.0001688,2]
[322892523,1713481847938,-200.0,0.00015921,2]
[322892524,1713481847948,-709.13918387,0.0001688,2]
[322892525,1713481848048,-428.76,0.0001688,2]
[322892526,1713481848425,-741.33942584,0.0001688,2]
[322892527,1713481848436,-317.177,0.0001688,2]
[322892528,1713481848463,-1987.52343642,0.0001688,2]
[322892529,1713481848482,-680.44298611,0.0001688,2]
[322892530,1713481848493,-353.61903,0.0001688,2]
[322892531,1713481848580,-1182.40378241,0.0001688,2]
[322892532,1713482139050,2538.98077247,0.0001266,2]
[322892533,1713482159035,2538.98077247,0.0001266,2]
[322892534,1713482174248,20160.54124009,0.0001266,2]
[322892535,1713482175467,1832.7642166,0.00012,2]
[322892536,1713482186561,20160.54124009,0.0001266,2]
[322892538,1713482204256,1774.33310808,0.0001266,2]
[322892539,1713482221441,363.84,0.00013884,2]
[322892540,1713482318165,6000.0,0.000282,120]
[322892543,1713482806541,382.82,0.00013862,2]
[322892544,1713482950243,-3774.27776718,0.00015777,2]
[322892545,1713482950264,-160.0,0.0001578,2]
[322892546,1713482950284,-3208.49693282,0.00015782,2]
[322892547,1713482957226,-1517.73669997,0.00015782,2]
[322892548,1713482957249,-840.0,0.00015784,2]
[322892549,1713482957270,-399.47,0.00015787,2]
[322892563,1713483031723,-382.82,0.00016126,2]
[322892564,1713483031732,-297.02698,0.0001671,2]
[322892565,1713483031780,-482.99531256,0.0001671,2]
[322892566,1713483031792,-1.54844744,0.0001671,2]
[322892567,1713483031801,-165.188344,0.00016712,2]
[322892568,1713483031810,-157.041907,0.0001673,2]
[322892569,1713483031819,-157.041907,0.0001673,2]
[322892570,1713483031828,-157.041907,0.0001673,2]
[322892571,1713483031838,-23.8202583,0.0001673,2]
[322892572,1713483031864,-133.2216487,0.0001673,2]
[322892573,1713483031873,-157.041907,0.0001673,2]
[322892574,1713483031882,-157.041907,0.0001673,2]
[322892575,1713483031891,-157.041907,0.0001673,2]
[322892576,1713483031900,-157.041907,0.0001673,2]
[322892577,1713483031910,-157.041907,0.0001673,2]
[322892578,1713483031919,-157.041907,0.00016731,2]
[322892579,1713483031928,-157.041907,0.00016731,2]
[322892580,1713483031938,-157.041907,0.00016731,2]
[322892581,1713483031947,-157.041907,0.00016731,2]
[322892582,1713483031956,-157.041907,0.00016731,2]
[322892583,1713483031965,-157.041907,0.00016731,2]
[322892584,1713483031974,-157.041907,0.00016731,2]
[322892585,1713483031983,-157.041907,0.00016731,2]
[322892586,1713483031992,-157.041907,0.00016731,2]
[322892587,1713483032001,-157.041907,0.00016731,2]
[322892588,1713483032010,-157.041907,0.00016731,2]
[322892589,1713483032019,-157.041907,0.00016731,2]
[322892590,1713483032028,-157.041907,0.00016731,2]
[322892591,1713483032037,-1602.02520422,0.00016732,2]
[322892592,1713483033189,-257.69726089,0.00016732,2]
[322892593,1713483033257,-5822.88429448,0.00016732,2]
[322892594,1713483033270,-299.99,0.00016732,2]
[322892597,1713483037878,-122553.25834041,0.00016732,2]
[322892598,1713483037888,-18092.0094,0.00016741,2]
[322892599,1713483037897,-196.05289302,0.00016745,2]
[322892600,1713483037906,-161.64215533,0.00016745,2]
[322892601,1713483037915,-1318.8143289,0.00016745,2]
[322892602,1713483037925,-500.0,0.00016747,2]
[322892603,1713483037935,-6033.74,0.00016747,2]
[322892604,1713483037944,-4465.05065677,0.00016748,2]
[322892605,1713483037953,-4465.05065675,0.00016752,2]
[322892606,1713483037962,-500.0,0.00016756,2]
[322892607,1713483037971,-4465.05065675,0.00016756,2]
[322892608,1713483037980,-1318.81432888,0.00016761,2]
[322892609,1713483037989,-4465.05065675,0.00016761,2]
[322892610,1713483037998,-161.64215531,0.00016761,2]
[322892611,1713483038007,-4465.05065675,0.00016765,2]
[322892612,1713483038016,-500.0,0.00016765,2]
[322892613,1713483038025,-4465.05065675,0.00016769,2]
[322892614,1713483038034,-4465.05065675,0.00016773,2]
[322892615,1713483038043,-500.0,0.00016774,2]
[322892616,1713483038053,-1318.81432888,0.00016776,2]
[322892617,1713483038062,-161.64215531,0.00016777,2]
[322892618,1713483038076,-4465.05065675,0.00016777,2]
[322892619,1713483038085,-3817.2553,0.0001678,2]
[322892620,1713483038096,-4465.05065675,0.00016781,2]
[322892621,1713483038105,-193.01252943,0.00016782,2]
[322892622,1713483038444,-500.0,0.00016782,2]
[322892623,1713483038459,-193.01252939,0.00016784,2]
[322892624,1713483038469,-193.01252939,0.00016785,2]
[322892625,1713483038478,-4465.05065675,0.00016786,2]
[322892626,1713483038487,-193.01252939,0.00016787,2]
[322892627,1713483038497,-193.01252939,0.00016789,2]
[322892628,1713483038506,-4465.05065675,0.0001679,2]
[322892629,1713483038514,-193.01252939,0.00016791,2]
[322892630,1713483038523,-500.0,0.00016791,2]
[322892631,1713483038532,-193.01252939,0.00016792,2]
[322892632,1713483038542,-2970.67626907,0.00016793,2]
[322892633,1713483038551,-193.01252939,0.00016794,2]
[322892634,1713483038560,-4465.05065675,0.00016794,2]
[322892635,1713483038570,-1784.52,0.00016797,2]
[322892636,1713483038579,-12469.53,0.00016798,2]
[322892637,1713483038588,-9857.21,0.00016798,2]
[322892638,1713483038598,-500.0,0.00016798,2]
[322892639,1713483038607,-5439.42,0.00016798,2]
[322892640,1713483038617,-18060.86,0.00016798,2]
[322892641,1713483038626,-946.54,0.00016798,2]
[322892642,1713483038635,-500.0,0.00016798,2]
[322892643,1713483038645,-157.041907,0.00016798,2]
[322892644,1713483038654,-157.041907,0.00016798,2]
[322892645,1713483038665,-157.041907,0.00016798,2]
[322892646,1713483038674,-157.041907,0.00016798,2]
[322892647,1713483038683,-157.041907,0.00016798,2]
[322892648,1713483038693,-157.041907,0.00016798,2]
[322892649,1713483038702,-157.041907,0.00016798,2]
[322892650,1713483038711,-157.041907,0.00016798,2]
[322892651,1713483038720,-157.041907,0.00016798,2]
[322892652,1713483038729,-4194.07,0.00016798,2]
[322892653,1713483038739,-157.041907,0.00016798,2]
[322892654,1713483038749,-157.041907,0.00016798,2]
[322892655,1713483038759,-157.041907,0.00016798,2]
[322892656,1713483038769,-157.041907,0.00016798,2]
[322892657,1713483038778,-6476.86,0.00016798,2]
[322892658,1713483038787,-1209.3,0.00016798,2]
[322892659,1713483038796,-1115.68120846,0.00016798,2]
[322892660,1713483038809,-353.55961219,0.00016798,2]
[322892661,1713483038820,-108.91917935,0.00016798,2]
[322892662,1713483038829,-843.91,0.00016798,2]
[322892663,1713483038839,-1004.99,0.00016798,2]
[322892664,1713483038849,-617.85,0.00016798,2]
[322892665,1713483038858,-1575.57,0.00016798,2]
[322892666,1713483038867,-786.14,0.00016798,2]
[322892667,1713483038877,-2328.89,0.00016798,2]
[322892668,1713483038886,-5937.65,0.00016799,2]
[322892669,1713483038895,-10316.83,0.00016799,2]
[322892670,1713483038905,-1036.07,0.00016799,2]
[322892671,1713483038914,-8523.51,0.00016799,2]
[322892672,1713483038923,-4300.36,0.00016799,2]
[322892673,1713483038932,-2152.41,0.00016799,2]
[322892674,1713483038941,-36519.05,0.00016799,2]
[322892675,1713483038951,-4033.82,0.00016799,2]
[322892676,1713483038960,-17156.25,0.00016799,2]
[322892677,1713483038970,-43360.57,0.00016799,2]
[322892678,1713483038979,-500.0,0.00016799,2]
[322892679,1713483038988,-4542.8,0.00016799,2]
[322892680,1713483038997,-699.1,0.00016799,2]
[322892681,1713483039007,-530.68527486,0.00016799,2]
[322892682,1713483039016,-583.57,0.00016799,2]
[322892683,1713483039026,-5189.79,0.00016799,2]
[322892684,1713483039036,-614.16,0.00016799,2]
[322892685,1713483039045,-500.0,0.00016799,2]
[322892686,1713483039054,-2354.62,0.00016799,2]
[322892687,1713483039064,-3357.87,0.00016799,2]
[322892688,1713483039075,-726.49,0.00016799,2]
[322892689,1713483039085,-500.0,0.00016799,2]
[322892690,1713483039094,-1784.52,0.00016799,2]
[322892691,1713483039104,-5800.0,0.000168,2]
[322892692,1713483039113,-500.0,0.000168,2]
[322892693,1713483039122,-58000.0,0.000168,2]
[322892694,1713483039132,-189.91857939,0.00016833,2]
[322892695,1713483039141,-154.94,0.00016834,2]
[322892696,1713483039153,-189.91857939,0.00016835,2]
[322892697,1713483039163,-157.041907,0.00016841,2]
[322892698,1713483039172,-157.041907,0.00016841,2]
[322892699,1713483039182,-157.041907,0.00016841,2]
[322892700,1713483039191,-157.041907,0.00016841,2]
[322892701,1713483039200,-157.041907,0.00016841,2]
[322892702,1713483039209,-157.041907,0.00016841,2]
[322892703,1713483039219,-157.041907,0.00016841,2]
[322892704,1713483039228,-157.041907,0.00016841,2]
[322892705,1713483039238,-157.041907,0.00016841,2]
[322892706,1713483039247,-157.041907,0.00016841,2]
[322892707,1713483039257,-166.42861037,0.00016842,2]
[322892708,1713483039266,-2275.87779789,0.00016842,2]
[322892709,1713483039275,-12469.53,0.00016843,2]
[322892710,1713483039284,-12469.53,0.00016843,2]
[322892711,1713483039293,-9857.21,0.00016843,2]
[322892712,1713483039302,-9857.21,0.00016843,2]
[322892713,1713483039311,-500.0,0.00016843,2]
[322892714,1713483039321,-500.0,0.00016843,2]
[322892715,1713483039331,-5439.42,0.00016843,2]
[322892716,1713483039340,-5439.42,0.00016843,2]
[322892717,1713483039349,-18060.86,0.00016843,2]
[322892718,1713483039358,-18060.86,0.00016843,2]
[322892719,1713483039368,-946.54,0.00016843,2]
[322892720,1713483039377,-946.54,0.00016843,2]
[322892721,1713483039386,-500.0,0.00016843,2]
[322892722,1713483039396,-500.0,0.00016843,2]
[322892723,1713483039406,-4194.07,0.00016843,2]
[322892724,1713483039415,-4194.07,0.00016843,2]
[322892725,1713483039424,-6476.86,0.00016843,2]
[322892726,1713483039434,-6476.86,0.00016843,2]
[322892727,1713483039443,-1209.3,0.00016843,2]
[322892728,1713483039452,-1209.3,0.00016843,2]
[322892729,1713483039461,-1578.16,0.00016843,2]
[322892730,1713483039471,-1578.16,0.00016843,2]
[322892731,1713483039480,-843.91,0.00016843,2]
[322892732,1713483039489,-843.91,0.00016843,2]
[322892733,1713483039499,-1004.99,0.00016843,2]
[322892734,1713483039508,-1004.99,0.00016843,2]
[322892735,1713483039517,-617.85,0.00016843,2]
[322892736,1713483039526,-617.85,0.00016843,2]
[322892738,1713483039535,-1575.57,0.00016843,2]
[322892740,1713483039544,-786.14,0.00016843,2]
[322892741,1713483039554,-1575.57,0.00016843,2]
[322892742,1713483039563,-786.14,0.00016843,2]
[322892743,1713483039572,-1784.52,0.00016843,2]
[322892744,1713483039581,-1784.52,0.00016843,2]
[322892745,1713483039591,-1784.52,0.00016843,2]
[322892746,1713483039601,-2328.89,0.00016843,2]
[322892747,1713483039612,-1784.52,0.00016843,2]
[322892748,1713483039622,-2328.89,0.00016843,2]
[322892749,1713483039632,-500.0,0.00016844,2]
[322892750,1713483039641,-500.0,0.00016844,2]
[322892752,1713483039650,-500.0,0.00016844,2]
[322892754,1713483039659,-500.0,0.00016844,2]
[322892755,1713483039669,-954.94,0.00016844,2]
[322892756,1713483039678,-500.0,0.00016844,2]
[322892757,1713483039687,-500.0,0.00016844,2]
[322892758,1713483039697,-2855.35,0.00016844,2]
[322892759,1713483039706,-500.0,0.00016844,2]
[322892760,1713483039715,-1701.81,0.00016844,2]
[322892761,1713483039725,-500.0,0.00016844,2]
[322892762,1713483039735,-500.0,0.00016844,2]
[322892763,1713483039745,-500.0,0.00016844,2]
[322892764,1713483039754,-2859.95,0.00016844,2]
[322892765,1713483039764,-500.0,0.00016844,2]
[322892766,1713483039774,-1770.55,0.00016844,2]
[322892767,1713483039784,-1558.6,0.00016844,2]
[322892768,1713483039793,-500.0,0.00016844,2]
[322892769,1713483039803,-500.0,0.00016844,2]
[322892770,1713483039812,-500.0,0.00016844,2]
[322892771,1713483039822,-500.0,0.00016844,2]
[322892772,1713483039832,-500.0,0.00016844,2]
[322892773,1713483039843,-500.0,0.00016844,2]
[322892774,1713483039852,-840.81,0.00016844,2]
[322892775,1713483039861,-500.0,0.00016844,2]
[322892776,1713483039871,-500.0,0.00016844,2]
[322892777,1713483039880,-1210.94,0.00016844,2]
[322892778,1713483039890,-500.0,0.00016844,2]
[322892779,1713483039899,-500.0,0.00016844,2]
[322892780,1713483039909,-572.22,0.00016844,2]
[322892781,1713483039918,-500.0,0.00016844,2]
[322892782,1713483039927,-500.0,0.00016844,2]
[322892783,1713483039937,-500.0,0.00016844,2]
[322892784,1713483039947,-5110.29,0.00016844,2]
[322892785,1713483039956,-696.37,0.00016844,2]
[322892786,1713483039966,-500.0,0.00016844,2]
[322892787,1713483039976,-3683.51,0.00016844,2]
[322892788,1713483039985,-861.2,0.00016844,2]
[322892789,1713483039995,-500.0,0.00016844,2]
[322892790,1713483040005,-1848.61,0.00016844,2]
[322892791,1713483040015,-500.0,0.00016844,2]
[322892792,1713483040025,-500.0,0.00016844,2]
[322892793,1713483040034,-1091.46,0.00016844,2]
[322892794,1713483040043,-1700.09,0.00016844,2]
[322892795,1713483040052,-500.0,0.00016844,2]
[322892796,1713483040062,-500.0,0.00016844,2]
[322892797,1713483040076,-500.0,0.00016844,2]
[322892798,1713483040085,-652.48,0.00016844,2]
[322892799,1713483040096,-536.53,0.00016844,2]
[322892800,1713483040106,-4288.38,0.00016844,2]
[322892801,1713483040117,-500.0,0.00016844,2]
[322892802,1713483040126,-500.0,0.00016844,2]
[322892803,1713483040136,-202.40727985,0.00016844,2]
[322892804,1713483040147,-989.25,0.00016844,2]
[322892805,1713483040157,-500.0,0.00016844,2]
[322892806,1713483040166,-500.0,0.00016844,2]
[322892808,1713483040175,-733.9,0.00016844,2]
[322892809,1713483040185,-3831.69,0.00016844,2]
[322892810,1713483040194,-500.0,0.00016844,2]
[322892811,1713483040204,-500.0,0.00016844,2]
[322892812,1713483040213,-1264.7,0.00016844,2]
[322892813,1713483040223,-500.0,0.00016844,2]
[322892814,1713483040233,-500.0,0.00016844,2]
[322892815,1713483040243,-2199.04,0.00016844,2]
[322892816,1713483040252,-515.25,0.00016844,2]
[322892817,1713483040261,-500.0,0.00016844,2]
[322892818,1713483040270,-1177.27,0.00016844,2]
[322892819,1713483040279,-500.0,0.00016844,2]
[322892820,1713483040289,-919.56,0.00016844,2]
[322892821,1713483040298,-500.0,0.00016844,2]
[322892822,1713483040307,-500.0,0.00016844,2]
[322892823,1713483040316,-2847.47,0.00016844,2]
[322892824,1713483040325,-1889.76,0.00016844,2]
[322892825,1713483040334,-500.0,0.00016844,2]
[322892826,1713483040345,-500.0,0.00016844,2]
[322892827,1713483040354,-500.0,0.00016844,2]
[322892828,1713483040363,-549.4,0.00016844,2]
[322892829,1713483040374,-500.0,0.00016844,2]
[322892830,1713483040383,-1591.53,0.00016844,2]
[322892831,1713483040393,-500.0,0.00016844,2]
[322892832,1713483040405,-1785.93,0.00016844,2]
[322892833,1713483040415,-500.0,0.00016844,2]
[322892834,1713483040426,-865.81,0.00016844,2]
[322892835,1713483040435,-500.0,0.00016844,2]
[322892836,1713483040444,-500.0,0.00016844,2]
[322892837,1713483040453,-1968.6,0.00016844,2]
[322892838,1713483040463,-500.0,0.00016844,2]
[322892839,1713483040474,-3657.58,0.00016844,2]
[322892840,1713483040483,-500.0,0.00016844,2]
[322892841,1713483040494,-500.0,0.00016844,2]
[322892842,1713483040503,-612.12,0.00016844,2]
[322892843,1713483040514,-500.0,0.00016844,2]
[322892844,1713483040524,-1220.0,0.00016844,2]
[322892845,1713483040534,-664.86,0.00016844,2]
[322892846,1713483040549,-500.0,0.00016844,2]
[322892847,1713483040558,-500.0,0.00016844,2]
[322892848,1713483040567,-914.63,0.00016844,2]
[322892849,1713483040577,-500.0,0.00016844,2]
[322892850,1713483040587,-500.0,0.00016844,2]
[322892851,1713483040599,-500.0,0.00016844,2]
[322892852,1713483040610,-500.0,0.00016844,2]
[322892853,1713483040619,-2192.54,0.00016844,2]
[322892854,1713483040628,-500.0,0.00016844,2]
[322892855,1713483040637,-500.0,0.00016844,2]
[322892856,1713483040647,-691.93,0.00016844,2]
[322892857,1713483040656,-500.0,0.00016844,2]
[322892858,1713483040666,-500.0,0.00016844,2]
[322892859,1713483040676,-500.0,0.00016844,2]
[322892860,1713483040686,-500.0,0.00016844,2]
[322892861,1713483040695,-500.0,0.00016844,2]
[322892862,1713483040705,-1268.35,0.00016844,2]
[322892863,1713483040716,-500.0,0.00016844,2]
[322892864,1713483040726,-500.0,0.00016844,2]
[322892865,1713483040736,-500.0,0.00016844,2]
[322892866,1713483040746,-1944.46,0.00016844,2]
[322892867,1713483040755,-500.0,0.00016844,2]
[322892868,1713483040765,-14512.3,0.00016844,2]
[322892869,1713483040775,-500.0,0.00016844,2]
[322892870,1713483040785,-5937.65,0.00016844,2]
[322892871,1713483040795,-5937.65,0.00016844,2]
[322892872,1713483040805,-2825.62,0.00016844,2]
[322892873,1713483040815,-5937.65,0.00016844,2]
[322892874,1713483040825,-1751.36,0.00016844,2]
[322892875,1713483040835,-500.0,0.00016844,2]
[322892876,1713483040846,-500.0,0.00016844,2]
[322892877,1713483040856,-500.0,0.00016844,2]
[322892878,1713483040866,-500.0,0.00016844,2]
[322892879,1713483040876,-7552.15,0.00016844,2]
[322892880,1713483040885,-728.01,0.00016844,2]
[322892881,1713483040894,-500.0,0.00016844,2]
[322892882,1713483040903,-4372.5,0.00016844,2]
[322892883,1713483040913,-500.0,0.00016844,2]
[322892884,1713483040923,-10316.83,0.00016844,2]
[322892885,1713483040932,-10316.83,0.00016844,2]
[322892886,1713483040941,-10316.83,0.00016844,2]
[322892887,1713483040950,-500.0,0.00016844,2]
[322892888,1713483040959,-500.0,0.00016844,2]
[322892889,1713483040968,-5143.75,0.00016844,2]
[322892890,1713483040978,-1036.07,0.00016844,2]
[322892891,1713483040986,-2761.32,0.00016844,2]
[322892892,1713483040995,-519.06333351,0.00016844,2]
[322892893,1713483041004,-500.0,0.00016844,2]
[322892894,1713483041014,-8523.51,0.00016844,2]
[322892895,1713483041022,-500.0,0.00016844,2]
[322892896,1713483041031,-1354.15,0.00016844,2]
[322892897,1713483041041,-9983.53,0.00016844,2]
[322892898,1713483041050,-500.0,0.00016844,2]
[322892899,1713483041059,-516.70742748,0.00016844,2]
[322892900,1713483041070,-4300.36,0.00016844,2]
[322892901,1713483041080,-924.67,0.00016844,2]
[322892902,1713483041089,-500.0,0.00016844,2]
[322892903,1713483041099,-1042.03,0.00016844,2]
[322892904,1713483041109,-1135.16,0.00016844,2]
[322892905,1713483041118,-2152.41,0.00016844,2]
[322892906,1713483041127,-2152.41,0.00016844,2]
[322892907,1713483041136,-2152.41,0.00016844,2]
[322892908,1713483041146,-500.0,0.00016844,2]
[322892909,1713483041155,-607.75,0.00016844,2]
[322892910,1713483041164,-500.0,0.00016844,2]
[322892911,1713483041174,-500.0,0.00016844,2]
[322892912,1713483041183,-3732.61,0.00016844,2]
[322892913,1713483041191,-500.0,0.00016844,2]
[322892914,1713483041201,-36519.05,0.00016844,2]
[322892915,1713483041210,-500.0,0.00016844,2]
[322892916,1713483041219,-4970.35,0.00016844,2]
[322892917,1713483041228,-2824.52,0.00016844,2]
[322892918,1713483041238,-500.0,0.00016844,2]
[322892919,1713483041247,-5397.08,0.00016844,2]
[322892920,1713483041257,-500.0,0.00016844,2]
[322892921,1713483041266,-500.0,0.00016844,2]
[322892922,1713483041275,-500.0,0.00016844,2]
[322892923,1713483041284,-4033.82,0.00016844,2]
[322892924,1713483041293,-6324.99,0.00016844,2]
[322892925,1713483041302,-388.89138904,0.00016844,2]
[322892926,1713483041312,-500.0,0.00016844,2]
[322892927,1713483041320,-17156.25,0.00016844,2]
[322892928,1713483041329,-17156.25,0.00016844,2]
[322892929,1713483041338,-17156.25,0.00016844,2]
[322892930,1713483041350,-500.0,0.00016844,2]
[322892931,1713483041359,-500.0,0.00016844,2]
[322892932,1713483041368,-43360.57,0.00016844,2]
[322892933,1713483041377,-12469.53,0.00016844,2]
[322892934,1713483041386,-12469.53,0.00016844,2]
[322892935,1713483041396,-12469.53,0.00016844,2]
[322892936,1713483041405,-2447.79,0.00016844,2]
[322892937,1713483041415,-7710.72,0.00016844,2]
[322892938,1713483041424,-500.0,0.00016844,2]
[322892939,1713483041433,-500.0,0.00016844,2]
[322892940,1713483041442,-9857.21,0.00016844,2]
[322892941,1713483041452,-9857.21,0.00016844,2]
[322892942,1713483041461,-9857.21,0.00016844,2]
[322892943,1713483041470,-4897.0,0.00016844,2]
[322892944,1713483041479,-3856.37,0.00016844,2]
[322892945,1713483041488,-500.0,0.00016844,2]
[322892946,1713483041498,-500.0,0.00016844,2]
[322892947,1713483041507,-500.0,0.00016844,2]
[322892948,1713483041516,-500.0,0.00016844,2]
[322892949,1713483041526,-500.0,0.00016844,2]
[322892950,1713483041535,-500.0,0.00016844,2]
[322892951,1713483041545,-500.0,0.00016844,2]
[322892952,1713483041554,-500.0,0.00016844,2]
[322892953,1713483041565,-500.0,0.00016844,2]
[322892954,1713483041574,-500.0,0.00016844,2]
[322892955,1713483041584,-2233.01,0.00016844,2]
[322892956,1713483041594,-1028.51,0.00016844,2]
[322892957,1713483041603,-500.0,0.00016844,2]
[322892958,1713483041613,-10591.72,0.00016844,2]
[322892959,1713483041622,-4542.8,0.00016844,2]
[322892960,1713483041631,-4542.8,0.00016844,2]
[322892961,1713483041641,-4542.8,0.00016844,2]
[322892962,1713483041650,-5439.42,0.00016844,2]
[322892963,1713483041660,-5439.42,0.00016844,2]
[322892964,1713483041669,-5439.42,0.00016844,2]
[322892965,1713483041678,-5439.42,0.00016844,2]
[322892966,1713483041688,-5439.42,0.00016844,2]
[322892967,1713483041697,-302.19624682,0.00016844,2]
[322892968,1713483041707,-1085.65,0.00016844,2]
[322892969,1713483041716,-500.0,0.00016844,2]
[322892970,1713483041726,-699.1,0.00016844,2]
[322892971,1713483041735,-699.1,0.00016844,2]
[322892972,1713483041744,-699.1,0.00016844,2]
[322892973,1713483041754,-500.0,0.00016844,2]